bitfinex/quotes_BTCUSD_20250907
["timestamp","ask_amount","ask_price","bid_price","bid_amount"]
[1757264068017,0.33010377,111220.0,111210.0,0.63424979]
[1757264072046,0.33010377,111220.0,111210.0,0.41418471]
[1757264072344,0.33010377,111220.0,111210.0,0.63424979]
[1757264076360,0.33010377,111220.0,111210.0,0.63130979]
[1757264076564,0.33214377,111220.0,111210.0,0.63130979]
[1757264078098,0.33214377,111220.0,111210.0,0.41124471]
[1757264078323,0.33513377,111220.0,111210.0,0.44951985]
[1757264078945,0.33513377,111220.0,111210.0,0.62935979]
[1757264080524,0.33513377,111220.0,111210.0,0.40929471]
[1757264081137,0.33513377,111220.0,111210.0,0.22945477]
[1757264081347,0.33513377,111220.0,111210.0,0.40929471]
[1757264081741,0.33513377,111220.0,111210.0,0.41144471]
[1757264085355,0.33513377,111220.0,111210.0,0.23160477]
[1757264085541,0.33513377,111220.0,111210.0,0.41144471]
[1757264087598,0.00204,111220.0,111210.0,0.41144471]
[1757264087946,0.33231328,111220.0,111210.0,0.41454471]
[1757264088273,0.33006377,111220.0,111210.0,0.41454471]
[1757264088696,0.33006377,111220.0,111210.0,0.634606]
[1757264092660,0.33002377,111220.0,111210.0,0.634606]
[1757264092856,0.33002377,111220.0,111210.0,0.631506]
[1757264093163,0.17982377,111220.0,111210.0,0.631506]
[1757264093366,0.33002377,111220.0,111210.0,0.631506]
[1757264094650,0.17982377,111220.0,111210.0,0.631506]
[1757264094859,0.33002377,111220.0,111210.0,0.634696]
[1757264095069,0.17982377,111220.0,111210.0,0.634696]
[1757264095243,0.33002377,111220.0,111210.0,0.634696]
[1757264099661,0.33002377,111220.0,111210.0,0.784896]
[1757264103830,0.33002377,111220.0,111210.0,0.634696]
[1757264105652,0.1502,111220.0,111210.0,0.784856]
[1757264105797,0.15244951,111220.0,111210.0,0.784856]
[1757264106828,0.33227328,111220.0,111210.0,0.784856]
[1757264107032,0.1502,111220.0,111210.0,0.784856]
[1757264107323,0.33227328,111220.0,111210.0,0.784856]
[1757264107522,0.1502,111220.0,111210.0,0.784856]
[1757264107725,0.15244951,111220.0,111210.0,0.784856]
[1757264108763,0.20679668,111230.0,111220.0,0.17982377]
[1757264108935,0.3299676,111230.0,111220.0,0.40187506]
[1757264109142,0.27584765,111240.0,111230.0,0.3798076]
[1757264109349,0.15016,111240.0,111230.0,0.60504889]
[1757264110137,0.15016,111240.0,111230.0,0.63203428]
[1757264110438,0.32995144,111240.0,111230.0,0.63203428]
[1757264111169,0.60983064,111250.0,111240.0,0.17979144]
[1757264111355,0.72997525,111250.0,111240.0,0.18178144]
[1757264111596,0.58184525,111250.0,111240.0,0.18178144]
[1757264111851,0.73200525,111250.0,111240.0,0.18178144]
[1757264112270,0.73503525,111250.0,111240.0,0.0289735]
[1757264112509,0.73703525,111250.0,111240.0,0.0289735]
[1757264112851,0.73703525,111250.0,111240.0,0.0269835]
[1757264114117,0.73703525,111250.0,111240.0,0.20777494]
[1757264114315,0.73703525,111250.0,111240.0,0.20976494]
[1757264115165,0.73503525,111250.0,111240.0,0.20976494]
[1757264115692,0.58487525,111250.0,111240.0,0.21076494]
[1757264115906,0.73503525,111250.0,111240.0,0.21076494]
[1757264117214,0.58487525,111250.0,111240.0,0.21076494]
[1757264117425,0.73499525,111250.0,111240.0,0.21076494]
[1757264117828,0.58487525,111250.0,111240.0,0.21076494]
[1757264117986,0.73499525,111250.0,111240.0,0.21076494]
[1757264123315,0.58184525,111250.0,111240.0,0.21076494]
[1757264123573,0.55012,111250.0,111240.0,0.43396623]
[1757264123830,0.72989528,111250.0,111240.0,0.21390494]
[1757264125345,0.73186528,111250.0,111240.0,0.21076494]
[1757264126074,0.33186528,111250.0,111240.0,0.21076494]
[1757264126413,0.18174528,111250.0,111240.0,0.21076494]
[1757264126636,0.33186528,111250.0,111240.0,0.21076494]
[1757264127808,0.33501528,111250.0,111240.0,0.21076494]
[1757264128057,0.33501528,111250.0,111240.0,0.0289835]
[1757264128771,0.33501528,111250.0,111240.0,0.20877494]
[1757264129220,0.33501528,111250.0,111240.0,0.0289835]
[1757264129472,0.33501528,111250.0,111240.0,0.20877494]
[1757264130575,0.33501528,111250.0,111240.0,0.21092494]
[1757264136706,0.33497528,111250.0,111240.0,0.21092494]
[1757264142519,0.55494124,111250.0,111240.0,0.21092494]
[1757264143155,0.40486124,111250.0,111240.0,0.21092494]
[1757264143486,0.55494124,111250.0,111240.0,0.21092494]
[1757264144173,0.40486124,111250.0,111240.0,0.21092494]
[1757264144424,0.55494124,111250.0,111240.0,0.21092494]
[1757264145374,0.40486124,111250.0,111240.0,0.21092494]
[1757264145664,0.55494124,111250.0,111240.0,0.21092494]
[1757264150778,0.55494124,111250.0,111240.0,0.0311335]
[1757264151035,0.55494124,111250.0,111240.0,0.21092494]
[1757264155272,0.33497528,111250.0,111240.0,0.21092494]
[1757264155524,0.55494124,111250.0,111240.0,0.21092494]
[1757264161595,0.33182528,111250.0,111240.0,0.21092494]
[1757264161805,0.55179124,111250.0,111240.0,0.21092494]
[1757264162030,0.55491124,111250.0,111240.0,0.21092494]
[1757264164489,0.55179124,111250.0,111240.0,0.21092494]
[1757264165147,0.55491124,111250.0,111240.0,0.21092494]
[1757264166799,0.55491124,111250.0,111240.0,0.0311335]
[1757264167021,0.55491124,111250.0,111240.0,0.21092494]
[1757264167235,0.55491124,111250.0,111240.0,0.0311335]
[1757264167550,0.55491124,111250.0,111240.0,0.21092494]
[1757264168079,0.55491124,111250.0,111240.0,0.0311335]
[1757264168347,0.55491124,111250.0,111240.0,0.21092494]
[1757264169709,0.55491124,111250.0,111240.0,0.0311335]
[1757264170120,0.55491124,111250.0,111240.0,0.21092494]
[1757264170348,0.55491124,111250.0,111240.0,0.0311335]
[1757264170569,0.55491124,111250.0,111240.0,0.21092494]
[1757264177399,0.55491124,111250.0,111240.0,0.0311335]
[1757264177630,0.55491124,111250.0,111240.0,0.21092494]
[1757264181213,0.55491124,111250.0,111240.0,0.0311335]
[1757264181693,0.55491124,111250.0,111240.0,0.21092494]
[1757264183404,0.33494528,111250.0,111240.0,0.21092494]
[1757264183559,0.55491124,111250.0,111240.0,0.21092494]
[1757264183724,0.55491124,111250.0,111240.0,0.0311335]
[1757264183925,0.55491124,111250.0,111240.0,0.21092494]
[1757264191780,0.33494528,111250.0,111240.0,0.21092494]
[1757264191984,0.55491124,111250.0,111240.0,0.21092494]
[1757264192405,0.33494528,111250.0,111240.0,0.21092494]
[1757264193510,0.33494528,111250.0,111240.0,0.0311335]
[1757264195270,0.33494528,111250.0,111240.0,0.0289835]
[1757264195516,0.55491124,111250.0,111240.0,0.0289835]
[1757264199803,0.55491124,111250.0,111240.0,0.21084494]
[1757264201695,0.55491124,111250.0,111240.0,0.0310535]
[1757264204413,0.33494528,111250.0,111240.0,0.0310535]
[1757264206902,0.33494528,111250.0,111240.0,0.21084494]
[1757264212023,0.33182528,111250.0,111240.0,0.21084494]
[1757264212413,0.33506528,111250.0,111240.0,0.21084494]
[1757264216609,0.33182528,111250.0,111240.0,0.21084494]
[1757264218177,0.18174528,111250.0,111240.0,0.21084494]
[1757264218422,0.33162528,111250.0,111240.0,0.21084494]
[1757264221138,0.17977528,111250.0,111240.0,0.21387494]
[1757264221388,0.32965528,111250.0,111240.0,0.21387494]
[1757264224968,0.32965528,111250.0,111240.0,0.21084494]
[1757264226721,0.33179528,111250.0,111240.0,0.21084494]
[1757264235748,0.18191528,111250.0,111240.0,0.21084494]
[1757264235932,0.32961528,111250.0,111240.0,0.21387494]
[1757264236441,0.32961528,111250.0,111240.0,0.21084494]
[1757264237289,0.33175528,111250.0,111240.0,0.21084494]
[1757264240712,0.33471528,111250.0,111240.0,0.21084494]
[1757264259422,0.18487528,111250.0,111240.0,0.21084494]
[1757264259635,0.33467528,111250.0,111240.0,0.21084494]
[1757264262843,0.2600304,111260.0,111250.0,0.2]
[1757264263043,0.63177921,111260.0,111250.0,0.2]
[1757264264024,0.63177921,111260.0,111250.0,0.20012601]
[1757264265615,0.4118104,111260.0,111250.0,0.20012601]
[1757264265824,0.63177921,111260.0,111250.0,0.20012601]
[1757264266566,0.63176663,111260.0,111250.0,0.20012601]
[1757264271451,0.4118104,111260.0,111250.0,0.20012601]
[1757264271654,0.63176663,111260.0,111250.0,0.20012601]
[1757264283388,0.48200663,111260.0,111250.0,0.20012601]
[1757264283508,0.63172663,111260.0,111250.0,0.20012601]
[1757264284338,0.48200663,111260.0,111250.0,0.20012601]
[1757264284569,0.63172663,111260.0,111250.0,0.20012601]
[1757264297646,0.4117704,111260.0,111250.0,0.20012601]
[1757264297861,0.63172663,111260.0,111250.0,0.20012601]
[1757264302793,0.4117704,111260.0,111250.0,0.20012601]
[1757264303017,0.2620504,111260.0,111250.0,0.20012601]
[1757264303262,0.02900229,111260.0,111250.0,0.60187752]
[1757264303490,0.14968,111260.0,111250.0,0.60493752]
[1757264303714,0.14968,111260.0,111250.0,0.63191646]
[1757264305508,0.30562794,111280.0,111270.0,0.2]
[1757264305736,0.30562794,111280.0,111270.0,0.20202]
[1757264305737,0.42832926,111280.0,111270.0,0.20202]
[1757264305952,0.42832926,111280.0,111270.0,0.60477919]
[1757264306178,0.42832926,111280.0,111270.0,0.63175493]
[1757264306408,0.42832926,111280.0,111270.0,0.6409493]
[1757264307206,0.27864926,111280.0,111270.0,0.6409493]
[1757264307429,0.42832926,111280.0,111270.0,0.6409493]
[1757264308902,0.42832926,111280.0,111270.0,0.45201197]
[1757264309316,0.43030926,111280.0,111270.0,0.44895197]
[1757264310984,0.43030926,111280.0,111270.0,0.22899574]
[1757264312316,0.43030926,111280.0,111270.0,0.44895197]
[1757264314303,0.43030926,111280.0,111270.0,0.22899574]
[1757264316786,0.43339926,111280.0,111270.0,0.44895197]
[1757264317175,0.43339926,111280.0,111270.0,0.22899574]
[1757264321106,0.65335549,111280.0,111270.0,0.22899574]
[1757264321321,0.65335549,111280.0,111270.0,0.22697574]
[1757264321528,0.43030926,111280.0,111270.0,0.22899574]
[1757264321745,0.43339926,111280.0,111270.0,0.22899574]
[1757264321957,0.65335549,111280.0,111270.0,0.22899574]
[1757264322201,0.65335549,111280.0,111270.0,0.22697574]
[1757264322424,0.43339926,111280.0,111270.0,0.22697574]
[1757264322641,0.43331926,111280.0,111270.0,0.22697574]
[1757264322852,0.65327549,111280.0,111270.0,0.22697574]
[1757264328362,0.43331926,111280.0,111270.0,0.22697574]
[1757264330211,0.6531855,111280.0,111270.0,0.22697574]
[1757264336232,0.6531855,111280.0,111270.0,0.2]
[1757264336433,0.68016274,111280.0,111270.0,0.2]
[1757264341904,0.17975912,111260.0,111250.0,0.14968601]
[1757264342167,0.32931912,111260.0,111250.0,0.00012601]
[1757264342382,0.33144912,111260.0,111250.0,0.00012601]
[1757264342523,0.33461912,111260.0,111250.0,0.00012601]
[1757264342723,0.33461912,111260.0,111250.0,0.02710517]
[1757264344103,0.33461912,111260.0,111250.0,0.02910517]
[1757264344625,0.33461912,111260.0,111250.0,0.02710517]
[1757264344762,0.33461912,111260.0,111250.0,0.02910517]
[1757264344979,0.33461912,111260.0,111250.0,0.03010517]
[1757264345390,0.33461912,111260.0,111250.0,0.02810517]
[1757264345804,0.36159898,111260.0,111250.0,0.02810517]
[1757264346019,0.36159898,111260.0,111250.0,0.02910517]
[1757264353461,0.36159898,111260.0,111250.0,0.00212601]
[1757264353756,0.36159898,111260.0,111250.0,0.02910587]
[1757264361662,0.33461912,111260.0,111250.0,0.00212601]
[1757264364359,0.55448536,111260.0,111250.0,0.00212601]
[1757264364985,0.33461912,111260.0,111250.0,0.00212601]
[1757264366764,0.34369882,111260.0,111250.0,0.00212601]
[1757264368113,0.37068093,111260.0,111250.0,0.00212601]
[1757264370132,0.22112093,111260.0,111250.0,0.00212601]
[1757264370350,0.59050717,111260.0,111250.0,0.00212601]
[1757264370567,0.68242316,111260.0,111250.0,0.00212601]
[1757264370777,1.02242316,111260.0,111250.0,0.00212601]
[1757264370994,1.02310316,111260.0,111250.0,0.00212601]
[1757264372069,1.02310316,111260.0,111250.0,0.00112601]
[1757264372275,1.02310316,111260.0,111250.0,0.00012601]
[1757264372483,1.02310316,111260.0,111250.0,0.00112601]
[1757264372711,1.02610316,111260.0,111250.0,0.00112601]
[1757264372863,1.09514316,111260.0,111250.0,0.00112601]
[1757264374242,1.09518316,111260.0,111250.0,0.00112601]
[1757264374573,1.09518316,111260.0,111250.0,0.00012601]
[1757264374973,1.09718316,111260.0,111250.0,0.00012601]
[1757264379224,0.94694316,111260.0,111250.0,0.00012601]
[1757264379431,1.09718316,111260.0,111250.0,0.00012601]
[1757264381938,0.87731692,111260.0,111250.0,0.00012601]
[1757264382136,1.09718316,111260.0,111250.0,0.00012601]
[1757264385166,0.94694316,111260.0,111250.0,0.00012601]
[1757264385393,1.09714316,111260.0,111250.0,0.00012601]
[1757264386096,0.87727692,111260.0,111250.0,0.00012601]
[1757264386300,1.09714316,111260.0,111250.0,0.00012601]
[1757264388431,1.31730192,111260.0,111250.0,0.00012601]
[1757264393958,1.40921791,111260.0,111250.0,0.00012601]
[1757264394133,1.40805324,111260.0,111250.0,0.00012601]
[1757264394333,1.33840074,111260.0,111250.0,0.00012601]
[1757264396378,1.35777518,111260.0,111250.0,0.00012601]
[1757264396817,1.35825518,111260.0,111250.0,0.00012601]
[1757264398066,1.35829518,111260.0,111250.0,0.00012601]
[1757264400332,1.20741518,111260.0,111250.0,0.00012601]
[1757264400558,1.35829518,111260.0,111250.0,0.00012601]
[1757264402808,1.35744196,111260.0,111250.0,0.00012601]
[1757264403452,0.91741696,111260.0,111250.0,0.00012601]
[1757264403648,1.35744196,111260.0,111250.0,0.00012601]
[1757264408478,1.20656196,111260.0,111250.0,0.00012601]
[1757264408690,1.35744196,111260.0,111250.0,0.00012601]
[1757264412999,1.20656196,111260.0,111250.0,0.00012601]
[1757264413201,1.35740196,111260.0,111250.0,0.00012601]
[1757264415223,1.20656196,111260.0,111250.0,0.00012601]
[1757264415467,1.35740196,111260.0,111250.0,0.00012601]
[1757264415840,1.20656196,111260.0,111250.0,0.00012601]
[1757264416075,1.35736196,111260.0,111250.0,0.00012601]
[1757264419564,0.95981644,111240.0,111230.0,0.2]
[1757264419745,1.20325243,111240.0,111230.0,0.00012671]
[1757264419984,1.20847243,111240.0,111230.0,0.00012671]
[1757264420764,1.23546367,111240.0,111230.0,0.00012671]
[1757264421980,1.23746367,111240.0,111230.0,0.00012671]
[1757264422420,1.27737088,111240.0,111230.0,0.00012671]
[1757264422842,1.27537088,111240.0,111230.0,0.00012671]
[1757264423046,0.83634588,111240.0,111230.0,0.00112671]
[1757264423260,1.27637088,111240.0,111230.0,0.00112671]
[1757264423607,1.27637088,111240.0,111230.0,0.00012671]
[1757264435012,0.83634588,111240.0,111230.0,0.00012671]
[1757264435237,1.27637088,111240.0,111230.0,0.00012671]
[1757264436609,0.83634588,111240.0,111230.0,0.00012671]
[1757264436835,1.27637088,111240.0,111230.0,0.00012671]
[1757264437655,0.83634588,111240.0,111230.0,0.00012671]
[1757264437887,1.27637088,111240.0,111230.0,0.00012671]
[1757264438330,1.2973097,111240.0,111230.0,0.00012671]
[1757264439188,0.90483838,111240.0,111230.0,0.00012671]
[1757264439393,0.83666588,111240.0,111230.0,0.22013921]
[1757264440044,0.83666588,111240.0,111230.0,0.00012671]
[1757264445456,0.68482588,111240.0,111230.0,0.22013921]
[1757264445581,0.83650588,111240.0,111230.0,0.22226921]
[1757264447466,0.68482588,111240.0,111230.0,0.42226921]
[1757264447693,0.49120588,111240.0,111230.0,0.42536921]
[1757264448062,0.46421464,111240.0,111230.0,0.42536921]
[1757264448861,0.46421464,111240.0,111230.0,0.20225671]
[1757264449064,0.46321464,111240.0,111230.0,0.42226921]
[1757264450546,0.46321464,111240.0,111230.0,0.42224512]
[1757264452524,0.46530464,111240.0,111230.0,0.42224512]
[1757264452725,0.46530464,111240.0,111230.0,0.20225671]
[1757264455836,0.46321464,111240.0,111230.0,0.42224512]
[1757264456107,0.46321464,111240.0,111230.0,0.42533512]
[1757264456316,0.46321464,111240.0,111230.0,0.20534671]
[1757264456504,0.21969865,111240.0,111230.0,0.42533512]
[1757264456682,0.37121865,111240.0,111230.0,0.42533512]
[1757264458585,0.37121865,111240.0,111230.0,0.20225671]
[1757264458771,0.37330865,111240.0,111230.0,0.20225671]
[1757264464121,0.37633865,111240.0,111230.0,0.20225671]
[1757264464310,0.37633865,111240.0,111230.0,0.20012671]
[1757264469405,0.68824305,111240.0,111230.0,0.20012671]
[1757264470063,0.71523092,111240.0,111230.0,0.20012671]
[1757264470267,0.49524251,111240.0,111230.0,0.20012671]
[1757264471021,0.49500251,111240.0,111230.0,0.20012671]
[1757264471266,0.49504251,111240.0,111230.0,0.20012671]
[1757264472325,0.34372251,111240.0,111230.0,0.20012671]
[1757264472607,0.49504251,111240.0,111230.0,0.20012671]
[1757264477563,0.34372251,111240.0,111230.0,0.20012671]
[1757264477768,0.49496251,111240.0,111230.0,0.20012671]
[1757264482981,0.34372251,111240.0,111230.0,0.20012671]
[1757264483193,0.49484251,111240.0,111230.0,0.20012671]
[1757264485270,0.34372251,111240.0,111230.0,0.20012671]
[1757264485480,0.49480251,111240.0,111230.0,0.20012671]
[1757264490271,0.4947216,111240.0,111230.0,0.20012671]
[1757264492678,0.3436416,111240.0,111230.0,0.20212671]
[1757264492883,0.4895216,111240.0,111230.0,0.20212671]
[1757264495119,0.4895216,111240.0,111230.0,0.42505512]
[1757264495120,0.33071053,111240.0,111230.0,0.42505512]
[1757264500821,0.33071053,111240.0,111230.0,0.20506671]
[1757264502012,0.33071053,111240.0,111230.0,0.20212671]
[1757264502380,0.55069894,111240.0,111230.0,0.20212671]
[1757264502588,0.55285894,111240.0,111230.0,0.20212671]
[1757264502896,0.33287053,111240.0,111230.0,0.20212671]
[1757264503304,0.55285894,111240.0,111230.0,0.20212671]
[1757264503510,0.55069894,111240.0,111230.0,0.20212671]
[1757264503706,0.55069894,111240.0,111230.0,0.20506671]
[1757264504107,0.33071053,111240.0,111230.0,0.20506671]
[1757264512545,0.55073276,111240.0,111230.0,0.20506671]
[1757264513307,0.33039053,111240.0,111230.0,0.20506671]
[1757264513518,0.55041276,111240.0,111230.0,0.20506671]
[1757264513936,0.33039053,111240.0,111230.0,0.20506671]
[1757264514143,0.55041276,111240.0,111230.0,0.20506671]
[1757264518171,0.55253276,111240.0,111230.0,0.20212671]
[1757264518378,0.55564276,111240.0,111230.0,0.20212671]
[1757264520207,0.55253276,111240.0,111230.0,0.20212671]
[1757264521125,0.55041276,111240.0,111230.0,0.20526671]
[1757264521910,0.55041276,111240.0,111230.0,0.20212671]
[1757264524775,0.55041276,111240.0,111230.0,0.20526671]
[1757264526420,1.55041276,111240.0,111230.0,0.20526671]
[1757264527203,1.33039053,111240.0,111230.0,0.20526671]
[1757264527416,1.55041276,111240.0,111230.0,0.20526671]
[1757264529045,1.33562053,111240.0,111230.0,0.20012671]
[1757264529293,1.55564276,111240.0,111230.0,0.20012671]
[1757264529639,1.55564276,111240.0,111230.0,0.20216671]
[1757264531526,1.55253276,111240.0,111230.0,0.20216671]
[1757264533946,1.55041276,111240.0,111230.0,0.20530671]
[1757264536857,1.55253276,111240.0,111230.0,0.20216671]
[1757264539675,1.55564276,111240.0,111230.0,0.20216671]
[1757264541002,1.55253276,111240.0,111230.0,0.20216671]
[1757264544862,1.33039053,111240.0,111230.0,0.20524671]
[1757264545071,1.55041276,111240.0,111230.0,0.20524671]
[1757264550267,1.32991053,111240.0,111230.0,0.38505431]
[1757264551925,1.17971053,111240.0,111230.0,0.38505431]
[1757264552180,1.32991053,111240.0,111230.0,0.38605431]
[1757264553609,1.32991053,111240.0,111230.0,0.38705431]
[1757264554075,1.32991053,111240.0,111230.0,0.38605431]
[1757264555096,1.32991053,111240.0,111230.0,0.38705431]
[1757264556284,1.54993276,111240.0,111230.0,0.20724671]
[1757264556667,1.54993276,111240.0,111230.0,0.38705431]
[1757264558561,1.32991053,111240.0,111230.0,0.38705431]
[1757264558768,1.54993276,111240.0,111230.0,0.38705431]
[1757264560225,1.32991053,111240.0,111230.0,0.38705431]
[1757264560450,1.54993276,111240.0,111230.0,0.38705431]
[1757264565513,1.54993276,111240.0,111230.0,0.41404031]
[1757264565745,1.32991053,111240.0,111230.0,0.41404031]
[1757264566588,1.32991053,111240.0,111230.0,0.63406254]
[1757264567742,1.32991053,111240.0,111230.0,0.41404031]
[1757264577307,1.1502,111240.0,111230.0,0.41404031]
[1757264577517,1.15016,111240.0,111230.0,0.63404368]
[1757264578363,1.15016,111240.0,111230.0,0.41404031]
[1757264580311,1.15016,111240.0,111230.0,0.63404368]
[1757264580714,1.15016,111240.0,111230.0,0.41404031]
[1757264581812,1.15016,111240.0,111230.0,0.63404368]
[1757264583477,1.32995144,111240.0,111230.0,0.41404031]
[1757264587424,1.15016,111240.0,111230.0,0.41404031]
[1757264587631,1.32995144,111240.0,111230.0,0.41404031]
[1757264595619,1.32995144,111240.0,111230.0,0.63404368]
[1757264609337,1.32995144,111240.0,111230.0,0.41404031]
[1757264609515,1.32995144,111240.0,111230.0,0.63404368]
[1757264610953,1.32995144,111240.0,111230.0,0.78412368]
[1757264616855,1.15016,111240.0,111230.0,0.78412368]
[1757264619666,1.0,111240.0,111230.0,0.78412368]
[1757264619896,1.15008,111240.0,111230.0,0.78412368]
[1757264620337,1.0,111240.0,111230.0,0.78412368]
[1757264620806,1.0,111240.0,111230.0,0.78312368]
[1757264621024,1.0,111240.0,111230.0,0.78412368]
[1757264621263,1.0,111240.0,111230.0,0.87603967]
[1757264621526,1.0,111240.0,111230.0,0.90087967]
[1757264621705,0.98524007,111240.0,111230.0,1.46388304]
[1757264621946,0.9647878,111240.0,111230.0,1.5447917]
[1757264622360,0.9647878,111240.0,111230.0,1.32478833]
[1757264624606,0.9647878,111240.0,111230.0,1.58798833]
[1757264631559,0.95425307,111240.0,111230.0,1.58798833]
[1757264631756,0.95425307,111240.0,111230.0,1.43790833]
[1757264631963,0.95425307,111240.0,111230.0,1.58794833]
[1757264632212,0.95425307,111240.0,111230.0,1.60593833]
[1757264632372,0.95425307,111240.0,111230.0,1.58794833]
[1757264632895,0.95425307,111240.0,111230.0,1.43790833]
[1757264633056,0.95425307,111240.0,111230.0,1.58794833]
[1757264633667,0.95425307,111240.0,111230.0,1.43790833]
[1757264633877,0.95425307,111240.0,111230.0,1.58794833]
[1757264634333,0.95425307,111240.0,111230.0,1.58787266]
[1757264636308,0.95425307,111240.0,111230.0,1.80780036]
[1757264638816,0.95425307,111240.0,111230.0,1.80776036]
[1757264639259,0.95425307,111240.0,111230.0,1.58783266]
[1757264641406,0.95425307,111240.0,111230.0,1.09783266]
[1757264641660,0.95425307,111240.0,111230.0,1.24783266]
[1757264641869,0.95425307,111240.0,111230.0,1.46776036]
[1757264642166,0.95425307,111240.0,111230.0,1.31776036]
[1757264642371,0.94371828,111240.0,111230.0,1.46776036]
[1757264643437,0.94371828,111240.0,111230.0,1.31776036]
[1757264643663,0.94371828,111240.0,111230.0,1.46776036]
[1757264644808,0.94371828,111240.0,111230.0,0.87790496]
[1757264645022,0.94371828,111240.0,111230.0,1.46776036]
[1757264648616,0.94371828,111240.0,111230.0,1.31776036]
[1757264648840,0.94371828,111240.0,111230.0,0.65306496]
[1757264649030,1.27553972,111240.0,111230.0,0.47716031]
[1757264649314,1.27553972,111240.0,111230.0,0.84708801]
[1757264652151,1.27857972,111240.0,111230.0,0.29531271]
[1757264654221,1.27857972,111240.0,111230.0,0.03211271]
[1757264654602,1.27857972,111240.0,111230.0,0.21192031]
[1757264654894,1.27857972,111240.0,111230.0,0.43184801]
[1757264655465,1.27857972,111240.0,111230.0,0.25204041]
[1757264655648,1.27857972,111240.0,111230.0,0.43184801]
[1757264655851,1.27857972,111240.0,111230.0,0.42884801]
[1757264656195,1.27857972,111240.0,111230.0,0.42684801]
[1757264656769,1.27857972,111240.0,111230.0,0.42884801]
[1757264657066,1.27857972,111240.0,111230.0,0.42684801]
[1757264657433,1.27857972,111240.0,111230.0,0.43084801]
[1757264657613,1.27857972,111240.0,111230.0,0.24804041]
[1757264657821,1.27857972,111240.0,111230.0,0.42784801]
[1757264658161,1.27857972,111240.0,111230.0,0.25004041]
[1757264658776,1.27857972,111240.0,111230.0,0.42984801]
[1757264658982,1.27857972,111240.0,111230.0,0.25004041]
[1757264660600,1.27857972,111240.0,111230.0,0.03011271]
[1757264660804,1.27857972,111240.0,111230.0,0.25004041]
[1757264662937,1.27857972,111240.0,111230.0,0.40286201]
[1757264663338,1.12857972,111240.0,111230.0,0.40286201]
[1757264663471,1.27853972,111240.0,111230.0,0.40286201]
[1757264664029,1.27853972,111240.0,111230.0,0.22305441]
[1757264664421,1.27853972,111240.0,111230.0,0.40286201]
[1757264664587,1.27853972,111240.0,111230.0,0.22305441]
[1757264665182,1.27853972,111240.0,111230.0,0.40286201]
[1757264666116,1.27853972,111240.0,111230.0,0.22305441]
[1757264667217,1.27853972,111240.0,111230.0,0.40286201]
[1757264667583,1.27853972,111240.0,111230.0,0.22305441]
[1757264667784,1.27853972,111240.0,111230.0,0.40286201]
[1757264668262,1.27853972,111240.0,111230.0,0.22305441]
[1757264668686,1.27853972,111240.0,111230.0,0.40286201]
[1757264669569,1.27853972,111240.0,111230.0,0.22305441]
[1757264670821,1.12857972,111240.0,111230.0,0.22305441]
[1757264671029,1.27853972,111240.0,111230.0,0.22305441]
[1757264672113,1.27853972,111240.0,111230.0,0.00312671]
[1757264672327,1.27853972,111240.0,111230.0,0.22305441]
[1757264672669,1.27853972,111240.0,111230.0,0.40286201]
[1757264672873,1.27853972,111240.0,111230.0,0.22305441]
[1757264673071,1.12857972,111240.0,111230.0,0.22305441]
[1757264673271,1.27853972,111240.0,111230.0,0.22305441]
[1757264675233,1.27853972,111240.0,111230.0,0.40286201]
[1757264676630,1.12857972,111240.0,111230.0,0.40286201]
[1757264676846,1.27853972,111240.0,111230.0,0.40286201]
[1757264677689,1.27853972,111240.0,111230.0,0.18293431]
[1757264677830,1.27853972,111240.0,111230.0,0.40286201]
[1757264678512,1.27853972,111240.0,111230.0,0.18293431]
[1757264678713,1.27853972,111240.0,111230.0,0.40286201]
[1757264680514,1.27853972,111240.0,111230.0,0.18293431]
[1757264680717,1.27853972,111240.0,111230.0,0.40286201]
[1757264682373,1.27853972,111240.0,111230.0,0.18293431]
[1757264682727,1.27853972,111240.0,111230.0,0.00312671]
[1757264682950,1.49846742,111240.0,111230.0,0.00312671]
[1757264685516,1.27853972,111240.0,111230.0,0.00312671]
[1757264692966,1.27853972,111240.0,111230.0,0.02111671]
[1757264693172,1.27853972,111240.0,111230.0,0.00312671]
[1757264694192,1.27853972,111240.0,111230.0,0.00212671]
[1757264694713,1.27853972,111240.0,111230.0,0.00312671]
[1757264695726,1.27853972,111240.0,111230.0,0.00112671]
[1757264696130,1.27853972,111240.0,111230.0,0.00212671]
[1757264696357,1.27853972,111240.0,111230.0,0.00112671]
[1757264702606,1.12857972,111240.0,111230.0,0.00112671]
[1757264702821,1.27845972,111240.0,111230.0,0.00112671]
[1757264703420,1.12857972,111240.0,111230.0,0.00112671]
[1757264703627,1.27845972,111240.0,111230.0,0.00112671]
[1757264704052,1.12857972,111240.0,111230.0,0.00112671]
[1757264704262,1.27845972,111240.0,111230.0,0.00112671]
[1757264705298,1.12857972,111240.0,111230.0,0.00112671]
[1757264705501,1.27845972,111240.0,111230.0,0.00112671]
[1757264708060,1.12857972,111240.0,111230.0,0.00112671]
[1757264708265,1.27845972,111240.0,111230.0,0.00112671]
[1757264723173,1.30544557,111240.0,111230.0,0.00112671]
[1757264731802,1.30544557,111240.0,111230.0,0.00112671]
[1757264734793,1.15556557,111240.0,111230.0,0.00112671]
[1757264734976,1.30540557,111240.0,111230.0,0.00112671]
[1757264746628,1.30536557,111240.0,111230.0,0.00112671]
[1757264750363,1.30029557,111240.0,111230.0,0.00312671]
[1757264750792,1.30236557,111240.0,111230.0,0.00312671]
[1757264751216,1.30530557,111240.0,111230.0,0.00312671]
[1757264751693,1.30530557,111240.0,111230.0,0.18293431]
[1757264752235,1.30530557,111240.0,111230.0,0.00312671]
[1757264753857,1.30530557,111240.0,111230.0,0.18293431]
[1757264754060,1.30530557,111240.0,111230.0,0.00312671]
[1757264758458,1.30530557,111240.0,111230.0,0.22312216]
[1757264760248,1.30530557,111240.0,111230.0,0.00312671]
[1757264760470,1.30530557,111240.0,111230.0,0.22312216]
[1757264760891,1.30530557,111240.0,111230.0,0.22112216]
[1757264761106,1.30530557,111240.0,111230.0,0.00112671]
[1757264766704,1.52530102,111240.0,111230.0,0.00112671]
[1757264767215,1.30530557,111240.0,111230.0,0.00112671]
[1757264769856,1.52530102,111240.0,111230.0,0.00112671]
[1757264770817,1.30530557,111240.0,111230.0,0.00112671]
[1757264770993,1.52530102,111240.0,111230.0,0.00112671]
[1757264771203,1.30530557,111240.0,111230.0,0.00112671]
[1757264771418,1.83721246,111240.0,111230.0,0.00112671]
[1757264771633,1.61721701,111240.0,111230.0,0.00112671]
[1757264777132,1.46741701,111240.0,111230.0,0.00112671]
[1757264777355,1.61713701,111240.0,111230.0,0.00112671]
[1757264777971,1.30522557,111240.0,111230.0,0.00112671]
[1757264778739,1.52522102,111240.0,111230.0,0.00112671]
[1757264779177,1.30522557,111240.0,111230.0,0.00112671]
[1757264779837,1.52522102,111240.0,111230.0,0.00112671]
[1757264780255,1.30522557,111240.0,111230.0,0.00112671]
[1757264780765,1.52522102,111240.0,111230.0,0.00112671]
[1757264788466,1.30522557,111240.0,111230.0,0.00112671]
[1757264788701,1.52522102,111240.0,111230.0,0.00112671]